fUSD/lending_fUSD_20250115
["ID","MTS","AMOUNT","RATE_DAILY","PERIOD"]
[348965211,1736901041375,-500.0,0.00011528,2]
[348965212,1736901041386,-500.0,0.00011528,2]
[348965213,1736901041396,-500.0,0.00011528,2]
[348965214,1736901041407,-500.0,0.00011528,2]
[348965215,1736901041417,-607.79772713,0.00011528,2]
[348965216,1736901041426,-500.0,0.00011528,2]
[348965217,1736901041436,-500.0,0.00011528,2]
[348965218,1736901041445,-500.0,0.00011528,2]
[348965219,1736901041454,-589.13,0.00011528,2]
[348965220,1736901041465,-500.0,0.00011528,2]
[348965221,1736901041474,-500.0,0.00011528,2]
[348965222,1736901041484,-500.0,0.00011528,2]
[348965223,1736901041496,-500.0,0.00011528,2]
[348965224,1736901041505,-2474.14,0.00011528,2]
[348965225,1736901041515,-500.0,0.00011528,2]
[348965226,1736901041524,-500.0,0.00011528,2]
[348965227,1736901041534,-500.0,0.00011528,2]
[348965228,1736901041543,-500.0,0.00011528,2]
[348965229,1736901041553,-500.0,0.00011528,2]
[348965230,1736901041564,-500.0,0.00011528,2]
[348965231,1736901041573,-500.0,0.00011528,2]
[348965232,1736901041583,-500.0,0.00011528,2]
[348965233,1736901041593,-500.0,0.00011528,2]
[348965234,1736901041602,-1787.3,0.00011528,2]
[348965235,1736901041612,-500.0,0.00011528,2]
[348965236,1736901041622,-500.0,0.00011528,2]
[348965237,1736901041631,-500.0,0.00011528,2]
[348965238,1736901041641,-500.0,0.00011528,2]
[348965239,1736901041650,-500.0,0.00011528,2]
[348965240,1736901041661,-500.0,0.00011528,2]
[348965241,1736901041670,-500.0,0.00011528,2]
[348965242,1736901041680,-505.29,0.00011528,2]
[348965243,1736901041691,-500.0,0.00011528,2]
[348965244,1736901041701,-2065.81,0.00011528,2]
[348965245,1736901041710,-500.0,0.00011528,2]
[348965246,1736901041720,-556.75,0.00011528,2]
[348965247,1736901041730,-352.56061788,0.00011528,2]
[348965248,1736901041740,-500.0,0.00011528,2]
[348965249,1736901041749,-500.0,0.00011528,2]
[348965250,1736901041759,-500.0,0.00011528,2]
[348965251,1736901041769,-500.0,0.00011528,2]
[348965252,1736901041779,-500.0,0.00011528,2]
[348965253,1736901041788,-500.0,0.00011528,2]
[348965254,1736901041798,-500.0,0.00011528,2]
[348965255,1736901041808,-500.0,0.00011528,2]
[348965256,1736901041818,-500.0,0.00011528,2]
[348965257,1736901041827,-500.0,0.00011528,2]
[348965258,1736901041837,-500.0,0.00011528,2]
[348965259,1736901041846,-500.0,0.00011528,2]
[348965260,1736901041855,-500.0,0.00011528,2]
[348965261,1736901041865,-500.0,0.00011528,2]
[348965262,1736901041874,-500.0,0.00011528,2]
[348965263,1736901041884,-500.0,0.00011528,2]
[348965264,1736901041893,-500.0,0.00011528,2]
[348965265,1736901041903,-500.0,0.00011528,2]
[348965266,1736901041912,-638.91,0.00011528,2]
[348965267,1736901041921,-151.0,0.00011528,2]
[348965268,1736901041930,-500.0,0.00011528,2]
[348965269,1736901041940,-500.0,0.00011528,2]
[348965270,1736901041950,-500.0,0.00011529,2]
[348965271,1736901041960,-500.0,0.00011529,2]
[348965272,1736901041970,-500.0,0.00011529,2]
[348965273,1736901041980,-500.0,0.00011529,2]
[348965274,1736901041989,-500.0,0.00011529,2]
[348965275,1736901041998,-500.0,0.00011529,2]
[348965276,1736901042008,-500.0,0.00011529,2]
[348965277,1736901042018,-500.0,0.00011529,2]
[348965278,1736901042027,-500.0,0.00011529,2]
[348965279,1736901042037,-500.0,0.00011529,2]
[348965280,1736901042046,-500.0,0.00011529,2]
[348965281,1736901042055,-500.0,0.00011529,2]
[348965282,1736901042065,-500.0,0.00011529,2]
[348965283,1736901042075,-500.0,0.00011529,2]
[348965284,1736901042085,-500.0,0.00011529,2]
[348965285,1736901042095,-500.0,0.00011529,2]
[348965286,1736901042105,-500.0,0.00011529,2]
[348965287,1736901042115,-500.0,0.00011529,2]
[348965288,1736901042125,-500.0,0.00011529,2]
[348965289,1736901042134,-155.87,0.00011529,2]
[348965290,1736901042144,-500.0,0.00011529,2]
[348965291,1736901042154,-500.0,0.00011529,2]
[348965292,1736901042164,-500.0,0.00011529,2]
[348965293,1736901042175,-500.0,0.00011529,2]
[348965294,1736901042190,-500.0,0.00011529,2]
[348965295,1736901042200,-500.0,0.00011529,2]
[348965296,1736901042210,-500.0,0.00011529,2]
[348965297,1736901042220,-500.0,0.00011529,2]
[348965298,1736901042231,-500.0,0.00011529,2]
[348965299,1736901042240,-500.0,0.00011529,2]
[348965300,1736901042250,-500.0,0.00011529,2]
[348965301,1736901042259,-500.0,0.00011529,2]
[348965302,1736901042268,-500.0,0.00011529,2]
[348965303,1736901042277,-500.0,0.00011529,2]
[348965304,1736901042287,-500.0,0.00011529,2]
[348965306,1736901042296,-500.0,0.00011529,2]
[348965308,1736901042305,-500.0,0.00011529,2]
[348965309,1736901042314,-500.0,0.00011529,2]
[348965310,1736901042323,-500.0,0.00011529,2]
[348965311,1736901042332,-500.0,0.00011529,2]
[348965312,1736901042341,-893.98,0.00011529,2]
[348965313,1736901042351,-500.0,0.00011529,2]
[348965314,1736901042360,-500.0,0.00011529,2]
[348965316,1736901042369,-500.0,0.00011529,2]
[348965317,1736901042379,-709.55,0.00011529,2]
[348965318,1736901042388,-525.16226411,0.00011529,2]
[348965319,1736901042397,-500.0,0.00011529,2]
[348965320,1736901042406,-500.0,0.00011529,2]
[348965321,1736901042417,-500.0,0.00011529,2]
[348965322,1736901042426,-500.0,0.00011529,2]
[348965323,1736901042435,-500.0,0.00011529,2]
[348965324,1736901042444,-500.0,0.00011529,2]
[348965325,1736901042454,-521.73,0.00011529,2]
[348965326,1736901042464,-868.69,0.00011529,2]
[348965327,1736901042473,-1284.73,0.00011529,2]
[348965328,1736901042483,-727.95,0.00011529,2]
[348965329,1736901042492,-3682.71,0.00011529,2]
[348965330,1736901042502,-1120.96,0.00011529,2]
[348965331,1736901042511,-500.0,0.0001153,2]
[348965332,1736901042521,-500.0,0.0001153,2]
[348965333,1736901042530,-500.0,0.0001153,2]
[348965334,1736901042540,-500.0,0.0001153,2]
[348965335,1736901042549,-500.0,0.0001153,2]
[348965336,1736901042558,-500.0,0.0001153,2]
[348965337,1736901042567,-950.34,0.00011532,2]
[348965338,1736901042576,-500.0,0.00011544,2]
[348965339,1736901042585,-1938.07,0.00011545,2]
[348965340,1736901042594,-903.37,0.00011546,2]
[348965341,1736901042604,-500.0,0.00011546,2]
[348965342,1736901042612,-500.0,0.00011546,2]
[348965343,1736901042622,-741.34,0.00011546,2]
[348965344,1736901042630,-1383.34,0.00011546,2]
[348965345,1736901042640,-857.87,0.00011546,2]
[348965346,1736901042649,-857.87,0.00011546,2]
[348965347,1736901042658,-595.96,0.00011546,2]
[348965348,1736901042668,-954.43,0.00011546,2]
[348965349,1736901042677,-2370.3,0.00011546,2]
[348965350,1736901042686,-2092.95,0.00011546,2]
[348965351,1736901042695,-1246.5,0.00011546,2]
[348965352,1736901042704,-748.95,0.00011547,2]
[348965353,1736901042713,-667.8,0.00011547,2]
[348965354,1736901042722,-1657.57,0.00011547,2]
[348965355,1736901042731,-774.93,0.00011547,2]
[348965356,1736901042740,-546.59,0.00011547,2]
[348965357,1736901042749,-500.0,0.00011547,2]
[348965358,1736901042758,-500.0,0.00011547,2]
[348965359,1736901042767,-683.98,0.00011547,2]
[348965360,1736901042776,-500.0,0.00011547,2]
[348965361,1736901042787,-584.12,0.00011547,2]
[348965362,1736901042797,-500.0,0.00011547,2]
[348965363,1736901042806,-968.26,0.00011547,2]
[348965364,1736901042815,-1081.5,0.00011547,2]
[348965365,1736901042824,-975.21,0.00011547,2]
[348965366,1736901042834,-2035.83,0.00011547,2]
[348965367,1736901042843,-4239.49,0.00011547,2]
[348965368,1736901042853,-831.53,0.00011547,2]
[348965369,1736901042863,-534.61,0.00011547,2]
[348965370,1736901042871,-1318.85,0.00011547,2]
[348965371,1736901042881,-500.0,0.00011547,2]
[348965372,1736901042890,-703.0,0.00011547,2]
[348965373,1736901042899,-852.73,0.00011547,2]
[348965374,1736901042909,-500.0,0.00011547,2]
[348965375,1736901042920,-1027.22,0.00011547,2]
[348965376,1736901042929,-1493.23,0.00011547,2]
[348965377,1736901042940,-500.0,0.00011547,2]
[348965378,1736901042950,-247926.70234082,0.00011638,2]
[348965379,1736901042959,-500.0,0.00011643,2]
[348965380,1736901042968,-1268.0,0.00011658,2]
[348965381,1736901042978,-2016.0,0.00011658,2]
[348965382,1736901042987,-637.0,0.00011658,2]
[348965383,1736901042997,-566.0,0.00011658,2]
[348965384,1736901043007,-3896.0,0.00011658,2]
[348965385,1736901043016,-635.0,0.00011658,2]
[348965386,1736901043026,-150.0,0.00011658,2]
[348965387,1736901043035,-1861.0,0.00011658,2]
[348965389,1736901043045,-150.0,0.00011658,2]
[348965390,1736901043238,-1174.0,0.00011658,2]
[348965391,1736901043248,-4436.18845693,0.00011662,2]
[348965392,1736901043258,-160.936,0.0001168,2]
[348965393,1736901043267,-321.76,0.00011689,2]
[348965394,1736901043278,-567.25,0.00011696,2]
[348965395,1736901043287,-1142.06,0.00011696,2]
[348965396,1736901043296,-3468.24,0.00011696,2]
[348965397,1736901043306,-817.65,0.00011696,2]
[348965398,1736901043315,-500.0,0.00011696,2]
[348965399,1736901043325,-511.83,0.00011696,2]
[348965400,1736901043335,-651.12,0.00011696,2]
[348965401,1736901043345,-500.0,0.00011696,2]
[348965402,1736901043355,-529.053445,0.00011696,2]
[348965403,1736901043364,-500.0,0.00011696,2]
[348965404,1736901043373,-1079.05,0.00011696,2]
[348965405,1736901043383,-500.0,0.00011696,2]
[348965406,1736901043393,-453.034004,0.00011696,2]
[348965407,1736901043402,-2361.0,0.00011696,2]
[348965408,1736901043411,-2322.83,0.00011696,2]
[348965409,1736901043420,-684.36,0.00011696,2]
[348965410,1736901043430,-673.65,0.00011696,2]
[348965411,1736901043439,-500.0,0.00011696,2]
[348965412,1736901043449,-1117.93,0.00011696,2]
[348965413,1736901043459,-500.0,0.00011696,2]
[348965414,1736901043468,-827.0,0.00011696,2]
[348965415,1736901043477,-500.0,0.00011696,2]
[348965416,1736901043487,-500.0,0.00011696,2]
[348965417,1736901043498,-667.66,0.00011696,2]
[348965418,1736901043508,-2252.59,0.00011696,2]
[348965419,1736901043518,-500.0,0.00011697,2]
[348965420,1736901043527,-500.0,0.00011697,2]
[348965421,1736901043537,-500.0,0.00011697,2]
[348965422,1736901043546,-2277.93,0.00011697,2]
[348965423,1736901043556,-9829.6734,0.00011721,2]
[348965424,1736901043566,-3100.0,0.0001178,2]
[348965425,1736901043575,-1200.0,0.0001178,2]
[348965426,1736901043585,-580.61,0.00011801,2]
[348965427,1736901043594,-500.0,0.00011801,2]
[348965428,1736901043604,-516.83,0.00011801,2]
[348965429,1736901043613,-830.42,0.00011801,2]
[348965430,1736901043623,-500.0,0.00011801,2]
[348965431,1736901043633,-1199.25,0.00011801,2]
[348965432,1736901043642,-1019.48,0.00011801,2]
[348965433,1736901043651,-500.0,0.00011801,2]
[348965434,1736901043660,-500.0,0.00011801,2]
[348965435,1736901043670,-642.99,0.00011801,2]
[348965436,1736901043680,-1789.09,0.00011801,2]
[348965437,1736901043689,-510.95,0.00011801,2]
[348965438,1736901043699,-500.0,0.00011801,2]
[348965439,1736901043709,-500.0,0.00011801,2]
[348965440,1736901043719,-691.47,0.00011801,2]
[348965441,1736901043728,-788.9,0.00011801,2]
[348965442,1736901043738,-500.0,0.00011801,2]
[348965443,1736901043748,-1010.31,0.00011801,2]
[348965444,1736901043757,-512.58,0.00011801,2]
[348965445,1736901043766,-1591.39,0.00011801,2]
[348965446,1736901043776,-1127.26,0.00011801,2]
[348965447,1736901043786,-500.0,0.00011802,2]
[348965448,1736901043795,-500.0,0.00011802,2]
[348965449,1736901043805,-527.66,0.00011802,2]
[348965450,1736901043815,-500.0,0.00011802,2]
[348965451,1736901043824,-500.0,0.00011802,2]
[348965452,1736901043834,-500.0,0.00011802,2]
[348965453,1736901043843,-500.0,0.00011802,2]
[348965454,1736901043853,-500.0,0.00011802,2]
[348965455,1736901043863,-500.0,0.00011802,2]
[348965456,1736901043872,-500.0,0.00011802,2]
[348965457,1736901043882,-500.0,0.00011802,2]
[348965458,1736901043892,-500.0,0.00011802,2]
[348965459,1736901043902,-500.0,0.00011802,2]
[348965460,1736901043912,-500.0,0.00011802,2]
[348965461,1736901043927,-500.0,0.00011802,2]
[348965462,1736901043937,-500.0,0.00011802,2]
[348965463,1736901043947,-500.0,0.00011802,2]
[348965464,1736901043957,-500.0,0.00011802,2]
[348965465,1736901043970,-263.41855643,0.00011802,2]
[348965466,1736901043980,-500.0,0.00011802,2]
[348965467,1736901043989,-500.0,0.00011802,2]
[348965468,1736901044000,-500.0,0.00011802,2]
[348965469,1736901044010,-500.0,0.00011802,2]
[348965470,1736901044020,-500.0,0.00011802,2]
[348965471,1736901044030,-500.0,0.00011802,2]
[348965472,1736901044040,-513.51,0.00011802,2]
[348965473,1736901044049,-500.0,0.00011802,2]
[348965474,1736901044059,-500.0,0.00011802,2]
[348965475,1736901044068,-500.0,0.00011802,2]
[348965476,1736901044078,-500.0,0.00011802,2]
[348965477,1736901044088,-500.0,0.00011802,2]
[348965478,1736901044099,-500.0,0.00011802,2]
[348965479,1736901044108,-500.0,0.00011802,2]
[348965480,1736901044118,-500.0,0.00011802,2]
[348965481,1736901044127,-500.0,0.00011802,2]
[348965482,1736901044137,-500.0,0.00011802,2]
[348965483,1736901044147,-500.0,0.00011802,2]
[348965484,1736901044157,-500.0,0.00011802,2]
[348965485,1736901044172,-500.0,0.00011802,2]
[348965486,1736901044182,-500.0,0.00011802,2]
[348965487,1736901044192,-500.0,0.00011802,2]
[348965488,1736901044202,-500.54,0.00011802,2]
[348965489,1736901044211,-500.0,0.00011802,2]
[348965490,1736901044220,-500.0,0.00011802,2]
[348965491,1736901044231,-514.49,0.00011802,2]
[348965492,1736901044240,-500.0,0.00011802,2]
[348965493,1736901044250,-500.0,0.00011802,2]
[348965494,1736901044260,-500.0,0.00011802,2]
[348965495,1736901044269,-500.0,0.00011802,2]
[348965496,1736901044279,-500.0,0.00011802,2]
[348965497,1736901044288,-500.0,0.00011802,2]
[348965498,1736901044298,-500.0,0.00011802,2]
[348965499,1736901044310,-500.0,0.00011802,2]
[348965500,1736901044321,-500.0,0.00011802,2]
[348965501,1736901044330,-589.13,0.00011802,2]
[348965502,1736901044340,-500.0,0.00011802,2]
[348965503,1736901044349,-500.0,0.00011802,2]
[348965504,1736901044359,-500.0,0.00011802,2]
[348965505,1736901044369,-500.0,0.00011802,2]
[348965506,1736901044379,-2474.14,0.00011802,2]
[348965507,1736901044390,-500.0,0.00011802,2]
[348965508,1736901044399,-500.0,0.00011802,2]
[348965509,1736901044410,-500.0,0.00011802,2]
[348965510,1736901044423,-500.0,0.00011802,2]
[348965511,1736901044432,-500.0,0.00011802,2]
[348965512,1736901044442,-500.0,0.00011802,2]
[348965513,1736901044451,-500.0,0.00011802,2]
[348965514,1736901044461,-500.0,0.00011802,2]
[348965515,1736901044472,-1787.3,0.00011802,2]
[348965516,1736901044482,-500.0,0.00011802,2]
[348965517,1736901044492,-500.0,0.00011802,2]
[348965518,1736901044503,-500.0,0.00011802,2]
[348965519,1736901044512,-500.0,0.00011802,2]
[348965520,1736901044522,-500.0,0.00011802,2]
[348965521,1736901044531,-505.29,0.00011802,2]
[348965522,1736901044540,-500.0,0.00011802,2]
[348965523,1736901044550,-2065.81,0.00011802,2]
[348965524,1736901044560,-556.75,0.00011802,2]
[348965525,1736901044571,-500.0,0.00011802,2]
[348965526,1736901044581,-500.0,0.00011802,2]
[348965527,1736901044590,-500.0,0.00011802,2]
[348965528,1736901044600,-500.0,0.00011802,2]
[348965529,1736901044609,-500.0,0.00011802,2]
[348965530,1736901044619,-500.0,0.00011802,2]
[348965531,1736901044628,-500.0,0.00011802,2]
[348965532,1736901044638,-500.0,0.00011802,2]
[348965533,1736901044649,-500.0,0.00011802,2]
[348965534,1736901044659,-500.0,0.00011802,2]
[348965535,1736901044670,-500.0,0.00011802,2]
[348965536,1736901044680,-500.0,0.00011802,2]
[348965537,1736901044689,-500.0,0.00011802,2]
[348965538,1736901044699,-500.0,0.00011802,2]
[348965539,1736901044709,-189.4984264,0.00011802,2]
[348965540,1736901044718,-500.0,0.00011802,2]
[348965541,1736901044728,-638.91,0.00011802,2]
[348965542,1736901044738,-500.0,0.00011802,2]
[348965543,1736901044747,-500.0,0.00011803,2]
[348965544,1736901044758,-500.0,0.00011803,2]
[348965545,1736901044767,-500.0,0.00011803,2]
[348965546,1736901044778,-500.0,0.00011803,2]
[348965547,1736901044788,-500.0,0.00011803,2]
[348965548,1736901044798,-500.0,0.00011803,2]
[348965549,1736901044807,-500.0,0.00011803,2]
[348965550,1736901044817,-500.0,0.00011803,2]
[348965551,1736901044826,-500.0,0.00011803,2]
[348965552,1736901044836,-500.0,0.00011803,2]
[348965553,1736901044846,-500.0,0.00011803,2]
[348965554,1736901044855,-500.0,0.00011803,2]
[348965555,1736901044865,-500.0,0.00011803,2]
[348965556,1736901044874,-500.0,0.00011803,2]
[348965557,1736901044884,-500.0,0.00011803,2]
[348965558,1736901044893,-500.0,0.00011803,2]
[348965559,1736901044903,-500.0,0.00011803,2]
[348965560,1736901044912,-500.0,0.00011803,2]
[348965561,1736901044923,-500.0,0.00011803,2]
[348965562,1736901044933,-500.0,0.00011803,2]
[348965563,1736901044943,-500.0,0.00011803,2]
[348965564,1736901044952,-500.0,0.00011803,2]
[348965565,1736901044962,-500.0,0.00011803,2]
[348965566,1736901044972,-500.0,0.00011803,2]
[348965567,1736901044981,-500.0,0.00011803,2]
[348965568,1736901044990,-500.0,0.00011803,2]
[348965569,1736901045000,-500.0,0.00011803,2]
[348965570,1736901045009,-500.0,0.00011803,2]
[348965571,1736901045018,-500.0,0.00011803,2]
[348965572,1736901045028,-500.0,0.00011803,2]
[348965573,1736901045038,-500.0,0.00011803,2]
[348965574,1736901045047,-500.0,0.00011803,2]
[348965575,1736901045057,-500.0,0.00011803,2]
[348965576,1736901045066,-500.0,0.00011803,2]
[348965577,1736901045076,-500.0,0.00011803,2]
[348965578,1736901045085,-500.0,0.00011803,2]
[348965579,1736901045094,-893.98,0.00011803,2]
[348965580,1736901045104,-500.0,0.00011803,2]
[348965581,1736901045113,-500.0,0.00011803,2]
[348965582,1736901045123,-500.0,0.00011803,2]
[348965583,1736901045133,-709.55,0.00011803,2]
[348965584,1736901045142,-500.0,0.00011803,2]
[348965585,1736901045152,-500.0,0.00011803,2]
[348965586,1736901045162,-500.0,0.00011803,2]
[348965587,1736901045173,-500.0,0.00011803,2]
[348965588,1736901045182,-500.0,0.00011803,2]
[348965589,1736901045191,-500.0,0.00011803,2]
[348965590,1736901045199,-521.73,0.00011803,2]
[348965591,1736901045209,-868.69,0.00011803,2]
[348965592,1736901045218,-1284.73,0.00011803,2]
[348965593,1736901045228,-727.95,0.00011803,2]
[348965594,1736901045238,-3682.71,0.00011803,2]
[348965595,1736901045247,-1120.96,0.00011803,2]
[348965597,1736901045257,-950.34,0.00011806,2]
[348965599,1736901045266,-9174.35118077,0.00011817,2]
[348965600,1736901045276,-500.0,0.0001182,2]
[348965601,1736901045285,-500.0,0.0001182,2]
[348965602,1736901045294,-500.0,0.0001182,2]
[348965603,1736901045304,-500.0,0.0001182,2]
[348965605,1736901045313,-500.0,0.0001182,2]
[348965607,1736901045322,-500.0,0.0001182,2]
[348965609,1736901045331,-500.0,0.0001182,2]
[348965611,1736901045341,-500.0,0.0001182,2]
[348965612,1736901045349,-500.0,0.0001182,2]
[348965613,1736901045358,-500.0,0.0001182,2]
[348965614,1736901045368,-500.0,0.0001182,2]
[348965615,1736901045378,-500.0,0.0001182,2]
[348965616,1736901045387,-500.0,0.0001182,2]
[348965617,1736901045396,-500.0,0.0001182,2]
[348965618,1736901045405,-500.0,0.0001182,2]
[348965619,1736901045417,-500.0,0.0001182,2]
[348965620,1736901045427,-500.0,0.0001182,2]
[348965621,1736901045435,-500.0,0.0001182,2]
[348965622,1736901045445,-500.0,0.0001182,2]
[348965623,1736901045454,-500.0,0.0001182,2]
[348965624,1736901045465,-501.0798274,0.0001182,2]
[348965625,1736901045474,-500.0,0.0001182,2]
[348965626,1736901045484,-500.0,0.0001182,2]
[348965627,1736901045493,-500.0,0.0001182,2]
[348965628,1736901045503,-500.0,0.0001182,2]
[348965629,1736901045512,-502.69828812,0.0001182,2]
[348965630,1736901045522,-500.0,0.0001182,2]
[348965631,1736901045531,-500.0,0.0001182,2]
[348965632,1736901045540,-500.0,0.0001182,2]
[348965633,1736901045550,-500.0,0.0001182,2]
[348965634,1736901045559,-500.61300584,0.0001182,2]
[348965635,1736901045569,-500.0,0.0001182,2]
[348965636,1736901045578,-196.93857927,0.0001182,2]
[348965637,1736901045636,-500.0,0.0001182,2]
[348965638,1736901045646,-500.0,0.0001182,2]
[348965639,1736901045655,-500.0,0.0001182,2]
[348965640,1736901045666,-500.0,0.0001182,2]
[348965641,1736901045676,-502.06239129,0.0001182,2]
[348965642,1736901045685,-500.0,0.0001182,2]
[348965643,1736901045695,-459.96177271,0.0001182,2]
[348965644,1736901045704,-500.0,0.0001182,2]
[348965645,1736901045713,-500.0,0.0001182,2]
[348965646,1736901045722,-500.0,0.0001182,2]
[348965647,1736901045732,-500.0,0.0001182,2]
[348965648,1736901045741,-500.0,0.0001182,2]
[348965649,1736901045750,-500.0,0.0001182,2]
[348965650,1736901045759,-500.0,0.0001182,2]
[348965651,1736901045768,-504.07263845,0.0001182,2]
[348965652,1736901045778,-500.0,0.0001182,2]
[348965653,1736901045788,-500.0,0.0001182,2]
[348965654,1736901045797,-501.77485595,0.0001182,2]
[348965655,1736901045806,-503.8741479,0.0001182,2]
[348965656,1736901045816,-500.0,0.0001182,2]
[348965657,1736901045825,-502.3678845,0.0001182,2]
[348965658,1736901045835,-527.74,0.0001182,2]
[348965659,1736901045844,-500.0,0.0001182,2]
[348965660,1736901045853,-500.0,0.0001182,2]
[348965662,1736901045863,-500.0,0.0001182,2]
[348965663,1736901045873,-500.0,0.0001182,2]
[348965664,1736901045883,-367.39412539,0.0001182,2]
[348965665,1736901045892,-500.0,0.0001182,2]
[348965666,1736901045902,-500.0,0.0001182,2]
[348965667,1736901045911,-501.71954857,0.0001182,2]
[348965669,1736901045923,-500.0,0.0001182,2]
[348965670,1736901045932,-500.0,0.0001182,2]
[348965671,1736901045942,-500.0,0.0001182,2]
[348965672,1736901045951,-500.0,0.0001182,2]
[348965673,1736901045961,-502.43344201,0.0001182,2]
[348965674,1736901045972,-500.0,0.0001182,2]
[348965675,1736901045981,-500.0,0.0001182,2]
[348965676,1736901045991,-500.0,0.0001182,2]
[348965677,1736901046001,-500.0,0.0001182,2]
[348965678,1736901046010,-500.0,0.0001182,2]
[348965679,1736901046019,-500.0,0.0001182,2]
[348965680,1736901046029,-500.0,0.0001182,2]
[348965681,1736901046038,-500.0,0.0001182,2]
[348965682,1736901046047,-500.0,0.0001182,2]
[348965683,1736901046056,-500.0,0.0001182,2]
[348965684,1736901046066,-500.0,0.0001182,2]
[348965685,1736901046081,-500.0,0.0001182,2]
[348965686,1736901046091,-500.0,0.0001182,2]
[348965687,1736901046100,-620.98648965,0.0001182,2]
[348965688,1736901046109,-500.0,0.0001182,2]
[348965689,1736901046118,-500.74851513,0.0001182,2]
[348965690,1736901046128,-503.32910166,0.0001182,2]
[348965691,1736901046137,-500.0,0.0001182,2]
[348965692,1736901046147,-500.0,0.0001182,2]
[348965693,1736901046156,-500.0,0.0001182,2]
[348965694,1736901046168,-500.0,0.0001182,2]
[348965695,1736901046177,-500.0,0.0001182,2]
[348965696,1736901046186,-508.22969326,0.0001182,2]
[348965697,1736901046196,-500.0,0.0001182,2]
[348965698,1736901046205,-500.0,0.0001182,2]
[348965699,1736901046215,-500.0,0.0001182,2]
[348965700,1736901046223,-500.0,0.0001182,2]
[348965701,1736901046232,-500.0,0.0001182,2]
[348965702,1736901046242,-506.8653332,0.0001182,2]
[348965703,1736901046251,-505.75373351,0.0001182,2]
[348965704,1736901046261,-500.0,0.0001182,2]
[348965705,1736901046272,-500.0,0.0001182,2]
[348965706,1736901046281,-500.0,0.0001182,2]
[348965707,1736901046290,-500.0,0.0001182,2]
[348965708,1736901046301,-500.0,0.0001182,2]
[348965709,1736901046310,-500.0,0.0001182,2]
[348965710,1736901046320,-503.12311388,0.0001182,2]
[348965711,1736901046330,-500.0,0.0001182,2]
[348965712,1736901046339,-501.61535428,0.0001182,2]
[348965713,1736901046350,-500.0,0.0001182,2]
[348965714,1736901046360,-501.05451407,0.0001182,2]
[348965715,1736901046370,-500.0,0.0001182,2]
[348965716,1736901046381,-500.0,0.0001182,2]
[348965717,1736901046391,-500.0,0.0001182,2]
[348965718,1736901046400,-174.96732529,0.0001182,2]
[348965719,1736901046411,-500.0,0.0001182,2]
[348965720,1736901046421,-503.93253735,0.0001182,2]
[348965721,1736901046430,-500.0,0.0001182,2]
[348965722,1736901046440,-500.0,0.0001182,2]